bitfinex/quotes_SOLUSD_20230116
["timestamp","ask_amount","ask_price","bid_price","bid_amount"]
[1673850202453,191.78884079,23.492,23.491,4672.17936148]
[1673850203002,169.53291667,23.492,23.491,4672.17936148]
[1673850203502,191.78794669,23.492,23.491,4672.17936148]
[1673850205308,169.53291667,23.492,23.491,4672.17936148]
[1673850205516,191.79607846,23.492,23.491,4672.17936148]
[1673850205835,191.79607846,23.492,23.491,4657.17936148]
[1673850206035,191.79607846,23.492,23.491,4652.17936148]
[1673850206036,174.79607846,23.492,23.491,4652.17936148]
[1673850206572,152.53291667,23.492,23.491,4493.01280504]
[1673850206779,152.53291667,23.492,23.491,4463.90283247]
[1673850206982,152.53291667,23.492,23.491,4458.90283247]
[1673850207187,152.53291667,23.492,23.491,4453.90283247]
[1673850207404,152.53291667,23.492,23.491,4368.15873247]
[1673850207614,152.53291667,23.492,23.491,4363.15873247]
[1673850207812,169.53291667,23.492,23.491,4363.15873247]
[1673850208144,191.78580055,23.492,23.491,4363.15873247]
[1673850208548,191.78580055,23.492,23.491,4353.15873247]
[1673850210564,152.53291667,23.492,23.491,4353.15873247]
[1673850210880,155.65468942,23.492,23.491,4353.15873247]
[1673850212335,172.65468942,23.492,23.491,4353.15873247]
[1673850212750,172.65468942,23.492,23.491,4323.20175777]
[1673850216124,169.53291667,23.492,23.491,4323.20175777]
[1673850216657,169.53291667,23.492,23.491,4254.34066015]
[1673850218452,169.53291667,23.492,23.491,4216.31364775]
[1673850222217,152.53291667,23.492,23.491,4216.31364775]
[1673850222672,152.53291667,23.492,23.491,4130.7775599]
[1673850223405,169.53291667,23.492,23.491,4130.7775599]
[1673850227402,152.53291667,23.492,23.491,4130.7775599]
[1673850228343,281.23291667,23.492,23.491,3921.89285222]
[1673850228533,284.23678667,23.492,23.491,3795.69736983]
[1673850228743,498.12455869,23.492,23.491,3685.85500162]
[1673850228977,498.12455869,23.492,23.491,3568.22373327]
[1673850229170,498.12455869,23.492,23.491,3458.86422841]
[1673850229496,304.23678667,23.492,23.491,3408.59280864]
[1673850229904,260.82521986,23.492,23.491,3408.59280864]
[1673850230120,374.71299188,23.492,23.491,3288.59280864]
[1673850230323,391.71299188,23.492,23.491,3263.11678369]
[1673850230526,277.82521986,23.492,23.491,3229.62222734]
[1673850230865,358.71299188,23.492,23.491,3229.62222734]
[1673850231270,358.71299188,23.492,23.491,3207.66288621]
[1673850231813,358.71299188,23.492,23.491,3147.66288621]
[1673850232119,358.71299188,23.492,23.491,2208.10502394]
[1673850232335,427.49467596,23.492,23.491,1569.05026879]
[1673850232558,470.21467596,23.492,23.491,1483.8359381]
[1673850232763,338.71299188,23.492,23.491,1387.56230076]
[1673850232971,338.71299188,23.492,23.491,956.79475819]
[1673850233295,338.71299188,23.492,23.491,821.90891337]
[1673850233488,338.71299188,23.492,23.491,743.44830518]
[1673850233698,257.82521986,23.492,23.491,730.78830518]
[1673850234015,257.82521986,23.492,23.491,496.32346934]
[1673850234226,257.82521986,23.492,23.491,363.58346934]
[1673850234447,257.82521986,23.492,23.491,350.80346934]
[1673850234668,257.82521986,23.492,23.491,338.06346934]
[1673850234973,257.82521986,23.492,23.491,300.01346934]
[1673850235397,257.82521986,23.492,23.491,287.30346934]
[1673850235585,257.82521986,23.492,23.491,261.93346934]
[1673850235798,257.82521986,23.492,23.491,251.93346934]
[1673850236122,257.82521986,23.492,23.491,221.39346934]
[1673850236320,257.82521986,23.492,23.491,183.19025723]
[1673850236531,257.82521986,23.492,23.467,20.0]
[1673850236532,152.26574006,23.486,23.467,20.0]
[1673850236741,152.26574006,23.486,23.452,100.5247]
[1673850236742,128.7,23.481,23.458,118.9383]
[1673850236953,423.18421612,23.48,23.458,118.9383]
[1673850237157,3.00387,23.479,23.458,118.9383]
[1673850237372,153.92638999,23.479,23.458,118.9383]
[1673850237620,132.6082,23.478,23.458,118.9383]
[1673850237791,3.00387,23.477,23.458,118.9383]
[1673850238000,41.29395257,23.477,23.458,118.9383]
[1673850238212,17.0,23.476,23.458,118.9383]
[1673850238523,41.29395257,23.475,23.458,118.9383]
[1673850238746,17.0,23.476,23.458,118.9383]
[1673850238747,20.00387,23.474,23.458,118.9383]
[1673850238969,17.0,23.473,23.458,118.9383]
[1673850239175,3.00387,23.473,23.458,118.9383]
[1673850242405,3.00387,23.473,23.452,100.5247]
[1673850245475,24.17579029,23.473,23.452,100.5247]
[1673850245666,187.92251999,23.472,23.452,100.5247]
[1673850245878,3.00387,23.471,23.452,100.5247]
[1673850247366,148.7,23.467,23.457,51.7089969]
[1673850247684,20.0,23.465,23.457,19.70825684]
[1673850248003,3.00387,23.464,23.457,19.70825684]
[1673850248184,3.00387,23.464,23.457,6.78745684]
[1673850248397,20.0,23.463,23.457,6.78745684]
[1673850248623,3.00387,23.462,23.457,6.78745684]
[1673850249480,3.00387,23.462,23.44,112.1245]
[1673850251045,20.0,23.461,23.44,111.1245]
[1673850251258,3.00387,23.46,23.44,111.1245]
[1673850253058,20.00387,23.46,23.44,111.1245]
[1673850253370,17.0,23.459,23.44,111.1245]
[1673850253584,3.00387,23.46,23.44,111.1245]
[1673850255675,3.12177275,23.462,23.441,20.0]
[1673850256301,42.72,23.47,23.441,20.0]
[1673850256506,235.12983219,23.474,23.441,20.0]
[1673850256715,3.00387,23.473,23.441,20.0]
[1673850264305,241.0134,23.491,23.442,17.0]
[1673850264522,3.00387,23.486,23.443,20.0]
[1673850264709,3.00387,23.486,23.444,17.0]
[1673850264911,3.00387,23.486,23.445,20.0]
[1673850265126,3.00387,23.486,23.446,17.0]
[1673850265553,3.00387,23.486,23.447,39.93341128]
[1673850265764,3.00387,23.486,23.448,17.0]
[1673850266417,3.00387,23.486,23.449,20.0]
[1673850266724,3.00387,23.486,23.45,17.0]
[1673850266913,3.00387,23.486,23.449,20.0]
[1673850267343,3.00387,23.486,23.451,20.0]
[1673850267583,3.00387,23.486,23.453,20.0]
[1673850272073,27.76805949,23.486,23.453,20.0]
[1673850272281,17.0,23.485,23.453,20.0]
[1673850273242,12.35,23.47,23.453,20.0]
[1673850273553,17.0,23.469,23.453,20.0]
[1673850274082,12.35,23.47,23.453,20.0]
[1673850275339,17.0,23.469,23.453,20.0]
[1673850275559,12.35,23.47,23.453,20.0]
[1673850275866,49.6,23.48,23.453,20.0]
[1673850275867,12.52,23.48,23.453,20.0]
[1673850276397,3.12177275,23.479,23.453,20.0]
[1673850276921,3.12177275,23.479,23.454,17.0]
[1673850278995,20.12177275,23.479,23.454,17.0]
[1673850279326,17.0,23.479,23.454,17.0]
[1673850279537,3.12177275,23.478,23.454,17.0]
[1673850279751,20.12177275,23.478,23.454,17.0]
[1673850280161,17.0,23.479,23.454,17.0]
[1673850280371,3.12177275,23.477,23.454,17.0]
[1673850280904,12.52,23.48,23.454,17.0]
[1673850281317,3.12177275,23.478,23.46,12.33]
[1673850281526,12.4,23.49,23.46,12.33]
[1673850281742,12.4,23.49,23.462,20.0]
[1673850281948,12.4,23.49,23.463,17.0]
[1673850282898,12.4,23.49,23.462,20.0]
[1673850283426,12.33,23.48,23.462,20.0]
[1673850283624,17.0,23.479,23.462,20.0]
[1673850284258,12.33,23.48,23.462,20.0]
[1673850284470,12.33,23.49,23.463,17.0]
[1673850284801,12.33,23.49,23.462,20.0]
[1673850284990,20.0,23.498,23.462,20.0]
[1673850284991,12.4,23.48,23.462,20.0]
[1673850285620,17.0,23.479,23.462,20.0]
[1673850286989,12.4,23.48,23.462,20.0]
[1673850287204,12.4,23.48,23.463,17.0]
[1673850287727,3.12177275,23.489,23.463,17.0]
[1673850288261,12.33,23.49,23.463,17.0]
[1673850288994,17.0,23.489,23.463,17.0]
[1673850290794,17.0,23.489,23.462,20.0]
[1673850292156,17.0,23.489,23.463,17.0]
[1673850292701,12.33,23.49,23.463,17.0]
[1673850293226,12.4,23.48,23.463,17.0]
[1673850295835,12.4,23.48,23.462,20.0]
[1673850295836,17.0,23.479,23.462,20.0]
[1673850305839,12.4,23.48,23.462,20.0]
[1673850306244,12.4,23.48,23.463,17.0]
[1673850306455,12.4,23.49,23.463,17.0]
[1673850306663,3.12177275,23.489,23.463,17.0]
[1673850306881,12.4,23.48,23.462,20.0]
[1673850307732,17.0,23.479,23.462,20.0]
[1673850309938,12.4,23.48,23.462,20.0]
[1673850310162,12.4,23.48,23.463,17.0]
[1673850312040,3.12177275,23.489,23.463,17.0]
[1673850312235,17.0,23.489,23.463,17.0]
[1673850314860,17.0,23.489,23.462,20.0]
[1673850315197,12.4,23.48,23.462,20.0]
[1673850318129,12.4,23.48,23.463,17.0]
[1673850319809,12.4,23.48,23.462,20.0]
[1673850320027,17.0,23.479,23.462,20.0]
[1673850325596,12.4,23.47,23.462,20.0]
[1673850325805,116.3928,23.478,23.462,20.0]
[1673850326021,17.0,23.477,23.462,20.0]
[1673850326840,17.0,23.477,23.461,20.0]
[1673850327166,16.49,23.47,23.461,20.0]
[1673850327366,17.0,23.469,23.461,20.0]
[1673850334005,17.0,23.469,23.458,20.0]
[1673850336117,17.0,23.469,23.454,20.0]
[1673850340001,17.0,23.469,23.444,115.6037]
[1673850340193,37.59234457,23.468,23.444,115.6037]
[1673850340404,17.0,23.467,23.444,115.6037]
[1673850342928,37.59234457,23.475,23.444,115.6037]
[1673850343134,230.4553,23.478,23.444,115.6037]
[1673850343345,230.4553,23.478,23.45,17.0]
[1673850343990,230.4553,23.478,23.444,115.6037]
[1673850344196,37.59234457,23.477,23.444,115.6037]
[1673850344725,3.12177275,23.476,23.45,17.0]
[1673850345047,37.59234457,23.477,23.45,17.0]
[1673850345255,16.53,23.48,23.45,33.47]
[1673850345466,16.53,23.48,23.45,54.93196354]
[1673850345871,16.53,23.48,23.451,20.0]
[1673850346090,16.53,23.48,23.452,17.0]
[1673850346725,17.0,23.479,23.452,125.0103]
[1673850347147,16.53,23.48,23.453,20.0]
[1673850347364,16.53,23.48,23.454,17.0]
[1673850347552,16.53,23.48,23.455,117.6367]
[1673850347771,16.53,23.48,23.457,20.0]
[1673850348187,16.53,23.48,23.458,17.0]
[1673850348835,17.0,23.479,23.458,17.0]
[1673850351052,16.53,23.48,23.458,17.0]
[1673850352405,16.49,23.49,23.458,17.0]
[1673850352619,16.49,23.49,23.459,3.00893]
[1673850353240,16.49,23.49,23.46,20.0]
[1673850353470,16.49,23.49,23.461,17.0]
[1673850353872,17.0,23.489,23.461,17.0]
[1673850355253,17.0,23.489,23.46,23.0088]
[1673850356418,17.0,23.489,23.461,17.0]
[1673850359131,16.49,23.49,23.461,17.0]
[1673850359542,16.49,23.49,23.462,3.00854]
[1673850359752,119.6873,23.491,23.462,23.00854]
[1673850360071,119.6873,23.491,23.47,16.53]
[1673850360292,119.6873,23.491,23.471,17.0]
[1673850361043,119.6873,23.491,23.472,20.0]
[1673850361430,119.6873,23.491,23.473,17.0]
[1673850363462,16.59,23.5,23.473,17.0]
[1673850366192,17.0,23.499,23.473,17.0]
[1673850368092,16.59,23.5,23.474,20.0]
[1673850368282,16.59,23.5,23.475,17.0]
[1673850370813,16.53,23.51,23.475,17.0]
[1673850371026,16.53,23.51,23.475,20.00688]
[1673850371240,16.49,23.5,23.475,3.00688]
[1673850371455,17.0,23.499,23.474,20.0]
[1673850372592,17.0,23.499,23.475,17.0]
[1673850372826,17.0,23.499,23.474,20.0]
[1673850374093,16.49,23.5,23.475,17.0]
[1673850375267,16.49,23.5,23.476,3.00675]
[1673850376942,17.0,23.499,23.475,17.0]
[1673850382519,16.49,23.5,23.475,17.0]
[1673850384616,17.0,23.499,23.475,17.0]
[1673850393861,16.49,23.5,23.475,17.0]
[1673850394914,16.49,23.5,23.475,20.00688]
[1673850397111,16.49,23.5,23.475,19.9339995]
[1673850398483,17.0,23.499,23.475,19.9339995]
[1673850400278,17.0,23.499,23.475,3.00688]
[1673850402157,17.0,23.499,23.475,20.00688]
[1673850404370,17.0,23.499,23.475,17.0]
[1673850405531,16.39,23.5,23.475,17.0]
[1673850405741,16.39,23.5,23.475,20.00688]
[1673850409936,17.0,23.499,23.475,20.00688]
[1673850410152,16.39,23.5,23.475,20.00688]
[1673850413019,17.0,23.499,23.475,20.00688]
[1673850414066,16.39,23.5,23.475,20.00688]
[1673850414473,17.0,23.499,23.475,20.00688]
[1673850417543,16.39,23.5,23.475,20.00688]
[1673850417734,16.39,23.5,23.476,3.00675]
[1673850417944,16.39,23.5,23.477,20.0]
[1673850418155,16.39,23.5,23.478,115.41159]
[1673850418467,16.39,23.5,23.48,20.0]
[1673850418691,16.39,23.5,23.481,17.0]
[1673850419327,12.37,23.5,23.481,17.0]
[1673850427843,110.6018,23.511,23.481,17.0]
[1673850427844,12.37,23.51,23.481,17.0]
[1673850428052,12.37,23.51,23.482,24.46794354]
[1673850428362,12.37,23.51,23.481,17.0]
[1673850428363,12.37,23.51,23.483,190.16781354]
[1673850428566,12.37,23.51,23.484,23.00572]
[1673850428900,12.37,23.51,23.485,20.0056]
[1673850429089,12.37,23.51,23.486,23.00547]
[1673850429421,12.37,23.51,23.487,20.00534]
[1673850433081,12.37,23.51,23.488,3.00521]
[1673850433917,12.37,23.51,23.489,116.5133]
[1673850434129,12.37,23.51,23.49,37.0]
[1673850434357,12.37,23.51,23.49,40.00496]
[1673850435935,12.37,23.51,23.491,3.00483]
[1673850437494,402.0,23.519,23.491,117.99923]
[1673850437705,12.43,23.52,23.5,12.28]
[1673850437929,12.43,23.52,23.501,17.0]
[1673850438134,12.43,23.52,23.501,20.00355]
[1673850438327,12.43,23.52,23.502,20.0]
[1673850438662,12.43,23.52,23.503,17.0]
[1673850439290,109.0548,23.529,23.503,17.0]
[1673850440132,109.0548,23.529,23.504,111.1879]
[1673850440349,109.0548,23.529,23.506,20.0]
[1673850440581,107.9835,23.53,23.506,20.0]
[1673850440582,107.9835,23.53,23.507,17.0]
[1673850440893,17.0,23.529,23.507,17.0]
[1673850442251,17.0,23.529,23.506,20.0]
[1673850442466,12.29,23.52,23.506,20.0]
[1673850442684,17.0,23.519,23.506,20.0]
[1673850444555,36.89847937,23.518,23.505,20.0]
[1673850444774,12.26,23.51,23.505,20.0]
[1673850444971,12.26,23.51,23.502,20.0]
[1673850445180,17.0,23.509,23.502,20.0]
[1673850445716,12.26,23.51,23.502,20.0]
[1673850450647,12.27,23.52,23.502,20.0]
[1673850450870,17.0,23.519,23.502,20.0]
[1673850454853,53.89847937,23.519,23.502,20.0]
[1673850460106,12.27,23.52,23.502,20.0]
[1673850460324,12.27,23.52,23.503,17.0]
[1673850463711,12.27,23.52,23.505,20.0]
[1673850464030,12.27,23.52,23.506,17.0]
[1673850467076,12.27,23.52,23.505,20.0]
[1673850470128,12.27,23.52,23.502,20.0]
[1673850470319,17.0,23.519,23.502,20.0]
[1673850470533,12.36,23.51,23.502,20.0]
[1673850470743,17.0,23.509,23.501,20.0]
[1673850471070,17.0,23.509,23.496,20.0]
[1673850472103,53.90777125,23.509,23.492,20.0]
[1673850472326,53.90777125,23.509,23.491,20.0]
[1673850472862,53.90777125,23.509,23.487,110.4272]
[1673850473082,81.4522975,23.509,23.481,20.0]
[1673850473516,12.26,23.49,23.479,20.0]
[1673850473699,17.0,23.489,23.473,112.1558]
[1673850474241,17.0,23.489,23.466,20.0]
[1673850474445,12.37,23.48,23.468,132.1558]
[1673850475071,27.54452625,23.499,23.468,132.1558]
[1673850475398,12.37,23.49,23.468,132.1558]
[1673850476552,12.37,23.48,23.468,20.0]
[1673850476956,17.0,23.479,23.468,20.0]
[1673850483186,12.37,23.48,23.468,20.0]
[1673850484020,16.52,23.48,23.468,20.0]
[1673850484423,17.0,23.479,23.468,20.0]
[1673850485154,165.2,23.54,23.468,20.0]
[1673850485371,177.77641043,23.51,23.5,16.52]
[1673850485585,22.22251999,23.541,23.501,20.00355]
[1673850485787,16.52,23.53,23.501,182.01330372]
[1673850486002,16.52,23.53,23.503,128.7]
[1673850486211,16.52,23.53,23.504,17.0]
[1673850486630,16.52,23.53,23.503,17.0]
[1673850486838,16.52,23.53,23.505,21.46196354]
[1673850487052,16.52,23.53,23.506,17.0]
[1673850487475,16.52,23.53,23.507,21.46196354]
[1673850487688,16.52,23.53,23.507,4.94196354]
[1673850487899,16.52,23.53,23.508,17.0]
[1673850488434,16.52,23.53,23.507,20.0]
[1673850488842,3.71457867,23.529,23.508,17.0]
[1673850489596,20.71457867,23.529,23.508,17.0]
[1673850489912,17.0,23.529,23.508,17.0]
[1673850490308,3.71457867,23.528,23.508,17.0]
[1673850490516,20.71457867,23.528,23.508,17.0]
[1673850490963,17.0,23.527,23.508,17.0]
[1673850491155,3.71457867,23.527,23.508,17.0]
[1673850491370,17.0,23.529,23.508,17.0]
[1673850491680,3.71457867,23.528,23.508,17.0]
[1673850492095,3.71457867,23.528,23.507,20.0]
[1673850493569,17.0,23.529,23.507,20.0]
[1673850493775,3.71457867,23.528,23.507,20.0]
[1673850495458,17.0,23.529,23.507,20.0]
[1673850495663,3.71457867,23.528,23.507,20.0]
[1673850497999,3.71457867,23.528,23.508,17.0]
[1673850498535,16.52,23.53,23.508,17.0]
[1673850499059,16.55,23.54,23.51,16.52]
[1673850499250,16.85285078,23.539,23.511,37.0]
[1673850499456,16.55,23.54,23.511,37.0]
[1673850499671,16.55,23.54,23.511,67.96425037]
[1673850499888,16.55,23.54,23.511,37.0]
[1673850500101,16.85285078,23.542,23.512,30.96425037]
[1673850500305,16.52,23.54,23.513,17.0]
[1673850500827,16.52,23.54,23.512,17.0]
[1673850501897,16.52,23.54,23.514,20.0]
[1673850502092,16.52,23.54,23.515,17.0]
[1673850503787,16.52,23.54,23.514,20.0]
[1673850505362,16.52,23.54,23.515,17.0]
[1673850506203,24.65,23.54,23.515,17.0]
[1673850506391,17.0,23.539,23.515,17.0]
[1673850507454,24.65,23.54,23.515,17.0]
[1673850507784,24.6,23.55,23.515,17.0]
[1673850508004,24.6,23.55,23.52,24.65]
[1673850508210,24.6,23.55,23.521,17.0]
[1673850508423,24.6,23.55,23.521,144.6]
[1673850508629,24.6,23.55,23.522,149.06196354]
[1673850508846,24.6,23.55,23.523,17.0]
[1673850509156,24.6,23.55,23.524,20.0]
[1673850509374,24.6,23.55,23.525,17.0]
[1673850511147,17.0,23.549,23.525,17.0]
[1673850511791,17.0,23.549,23.524,20.0]
[1673850511985,24.65,23.54,23.524,20.0]
[1673850512200,17.0,23.539,23.524,20.0]
[1673850515251,17.0,23.539,23.523,20.0]
[1673850515478,24.6,23.53,23.523,20.0]
[1673850516417,17.0,23.529,23.523,20.0]
[1673850517267,24.6,23.53,23.523,20.0]
[1673850519264,98.69,23.54,23.523,20.0]
[1673850519544,24.52,23.54,23.523,20.0]
[1673850522411,113.705,23.543,23.524,17.0]
[1673850524531,24.6,23.55,23.524,17.0]
[1673850527687,2.78892197,23.549,23.524,17.0]
[1673850527892,24.6,23.55,23.524,17.0]
[1673850528210,2.78892197,23.549,23.524,17.0]
[1673850528614,2.78892197,23.549,23.523,20.0]
[1673850528823,19.78892197,23.549,23.523,20.0]
[1673850529877,19.78892197,23.549,23.524,17.0]
[1673850530297,19.78892197,23.549,23.523,20.0]
[1673850530942,2.78892197,23.549,23.523,20.0]
[1673850531155,2.78892197,23.549,23.524,17.0]
[1673850533035,19.78892197,23.549,23.524,17.0]
[1673850533691,19.78892197,23.549,23.523,20.0]
[1673850535167,19.78892197,23.549,23.524,17.0]
[1673850536311,2.78892197,23.549,23.524,17.0]
[1673850537449,24.6,23.55,23.524,17.0]
[1673850537668,17.0,23.549,23.524,17.0]
[1673850537880,19.78892197,23.549,23.524,17.0]
[1673850540297,2.78892197,23.549,23.524,17.0]
[1673850541133,98.6,23.56,23.53,24.65]
[1673850541134,24.74,23.56,23.53,24.65]
[1673850541352,24.74,23.56,23.531,17.0]
[1673850542075,24.74,23.56,23.532,111.8688]
[1673850542406,24.74,23.56,23.533,17.0]
[1673850542613,24.74,23.56,23.532,111.8688]
[1673850542812,17.0,23.555,23.532,111.8688]
[1673850543353,24.65,23.55,23.523,20.0]
[1673850543559,24.65,23.55,23.524,111.8688]
[1673850543560,17.0,23.549,23.524,111.8688]
[1673850545556,58.74479284,23.549,23.524,111.8688]
[1673850547232,58.74479284,23.549,23.523,20.0]
[1673850547871,24.52,23.54,23.523,20.0]
[1673850548410,17.0,23.539,23.523,20.0]
[1673850552080,24.52,23.54,23.523,20.0]
[1673850552490,58.59764362,23.549,23.524,17.0]
[1673850553648,17.0,23.548,23.524,17.0]
[1673850556694,17.0,23.549,23.523,20.0]
[1673850557117,58.74479284,23.549,23.523,20.0]
[1673850557539,24.52,23.54,23.523,20.0]
[1673850557962,17.0,23.539,23.523,20.0]
[1673850568490,24.6,23.55,23.523,20.0]
[1673850568707,199.69699648,23.582,23.523,20.0]
[1673850568708,24.74,23.56,23.53,24.65]
[1673850568911,24.74,23.56,23.532,20.0]
[1673850569128,24.74,23.56,23.533,17.0]
[1673850569442,24.74,23.56,23.532,20.0]
[1673850569648,24.65,23.55,23.532,20.0]
[1673850569861,17.0,23.549,23.532,20.0]
[1673850570261,24.65,23.55,23.532,20.0]
[1673850570469,2.78892197,23.555,23.533,17.0]
[1673850570910,24.74,23.56,23.533,17.0]
[1673850571226,27.52892197,23.56,23.533,17.0]
[1673850571632,24.74,23.56,23.533,17.0]
[1673850573118,16.31,23.56,23.533,17.0]
[1673850574886,17.0,23.555,23.532,20.0]
[1673850575516,16.31,23.56,23.532,20.0]
[1673850575948,16.31,23.56,23.533,127.6]
[1673850576157,125.33065078,23.569,23.534,17.0]
[1673850576367,125.33065078,23.569,23.536,20.0]
[1673850576572,125.33065078,23.569,23.537,17.0]
[1673850576786,125.33065078,23.569,23.537,38.46196354]
[1673850577022,125.33065078,23.569,23.538,41.46196354]
[1673850577198,125.33065078,23.569,23.539,17.0]
[1673850577407,108.4778,23.569,23.54,16.4]
[1673850577741,108.4778,23.569,23.542,20.0]
[1673850578140,108.4778,23.569,23.544,20.0]
[1673850578371,17.0,23.568,23.545,17.0]
[1673850582769,17.0,23.568,23.544,20.0]
[1673850582981,16.29,23.56,23.544,20.0]
[1673850583425,17.0,23.559,23.544,20.0]
[1673850584041,17.0,23.559,23.542,20.0]
[1673850584252,16.31,23.55,23.538,20.0]
[1673850584480,17.0,23.549,23.538,20.0]
[1673850585416,17.0,23.549,23.531,20.0]
[1673850595720,16.31,23.55,23.531,20.0]
[1673850599499,16.31,23.55,23.537,17.0]
[1673850599701,114.1695,23.556,23.537,17.0]
[1673850599902,114.1695,23.556,23.537,133.0366]
[1673850600549,16.29,23.56,23.537,133.0366]
[1673850600759,402.0,23.568,23.538,20.0]
[1673850600954,26.50777529,23.56,23.539,17.0]
[1673850601395,26.50777529,23.56,23.54,20.0]
[1673850601585,26.50777529,23.56,23.541,17.0]
[1673850602426,26.50777529,23.56,23.54,20.0]
[1673850602635,42.81777529,23.56,23.54,20.0]
[1673850602860,2.92365805,23.559,23.54,20.0]
[1673850603181,42.81777529,23.56,23.54,20.0]
[1673850603371,17.0,23.559,23.54,20.0]
[1673850603697,26.50777529,23.559,23.54,20.0]
[1673850604871,26.50777529,23.559,23.541,17.0]
[1673850607287,26.50777529,23.559,23.542,127.6]
[1673850607483,0.00777529,23.559,23.544,20.0]
[1673850607686,16.25,23.57,23.545,37.0]
[1673850607893,16.25,23.57,23.545,58.46196354]
[1673850608104,16.25,23.57,23.546,21.46196354]
[1673850608335,16.25,23.57,23.547,37.0]
[1673850608953,16.25,23.57,23.549,20.0]
[1673850609178,16.25,23.57,23.55,17.0]
[1673850610734,16.57,23.58,23.55,17.0]
[1673850610941,17.0,23.579,23.55,17.0]
[1673850611155,16.57,23.58,23.55,17.0]
[1673850612016,16.57,23.58,23.549,20.0]
[1673850612220,47.64784815,23.58,23.549,20.0]
[1673850613377,35.37603716,23.579,23.549,20.0]
[1673850613908,17.0,23.578,23.549,20.0]
[1673850614311,17.0,23.578,23.55,17.0]
[1673850614951,35.37603716,23.579,23.55,17.0]
[1673850615163,16.57,23.58,23.55,160.94]
[1673850615377,16.57,23.58,23.551,20.0]
[1673850615586,16.57,23.58,23.553,20.0]
[1673850615802,16.57,23.58,23.554,20.0]
[1673850616122,16.57,23.58,23.554,164.6]
[1673850616333,16.57,23.58,23.555,20.0]
[1673850616652,16.57,23.58,23.556,17.0]
[1673850616851,16.41,23.57,23.557,20.0]
[1673850617071,16.41,23.57,23.55,37.08010066]
[1673850617389,17.0,23.569,23.53,117.0453]
[1673850617803,171.55193912,23.569,23.53,117.0453]
[1673850618208,171.55193912,23.569,23.54,20.0]
[1673850618417,125.236,23.569,23.54,20.0]
[1673850619384,160.30251681,23.569,23.54,20.0]
[1673850620531,125.236,23.569,23.54,20.0]
[1673850621798,46.31593912,23.568,23.54,20.0]
[1673850622002,46.31593912,23.568,23.544,147.6]
[1673850622222,35.06651681,23.568,23.551,20.0]
[1673850622533,16.7181147,23.578,23.552,17.0]
[1673850623265,16.7181147,23.578,23.551,20.0]
[1673850623590,16.41,23.57,23.551,20.0]
[1673850623772,17.0,23.569,23.551,20.0]
[1673850623989,16.41,23.57,23.552,17.0]
[1673850624215,16.29,23.57,23.551,20.0]
[1673850625372,17.0,23.569,23.551,20.0]